[Event "58th Akiba Rubinstein B 2022"]
[Site "Polanica-Zdroj"]
[Date "2022.08.17"]
[Round "5.3"]
[White "Rogala, Milosz"]
[Black "Lukasiewicz, Anna"]
[Result "0-1"]
[ECO "B23"]
[WhiteElo "1837"]
[BlackElo "1954"]
[Annotator "TA"]
[PlyCount "74"]
[EventDate "2022.08.13"]
[EventCountry "POL"]
[SourceTitle "playchess.com"]
[Source "ChessBase"]
[SourceQuality "1"]
[TimeControl "40/5400+30:1800+30"]

{[%evp 14,74,-8,-38,0,-5,0,-10,-10,-6,0,-29,-39,-39,-20,-16,-2,0,6,14,0,0,0,0,0,0,52,52,115,5,22,8,28,0,0,-1,19,10,39,0,45,-400,-383,-366,-388,-401,-402,-389,-402,-376,-374,-389,-384,-347,-198,-425,-400,-920,-535,-1181,-917,-1175,-1154]} 1. e4 {[%emt 0:00:07]} c5 {[%emt 0:00:14]} 2. Nc3 {[%emt 0:00:34]} Nc6 {[%emt 0:00:23]} 3. f4 g6 4. Nf3 Bg7 5. Bc4 d6 6. O-O e6 7. d3 Nge7 8. a3 a6 {B23: Closed Sicilian: Lines without g3.} 9. Ba2 O-O 10. Be3 Nd4 {The position is equal.} 11. Rb1 b5 {[#]} 12. Ne2 $146 ({Predecessor:} 12. Bxd4 cxd4 13. Ne2 h6 14. Kh1 Qb6 15. Ng3 Kh7 16. Nh4 f5 17. exf5 gxf5 18. Nh5 {0-1 (39) Pham,M-Albert,K (2120) Szombathely 1993}) 12... Nxf3+ 13. Rxf3 Bb7 14. Ng3 Rc8 15. Rf2 d5 16. f5 exf5 (16... gxf5 {with more complications.} 17. exf5 Nxf5 18. Nxf5 exf5 19. Rxf5 c4) 17. exf5 Nxf5 18. Nxf5 gxf5 19. Rxf5 d4 (19... c4 $1 $11) 20. Bg5 $14 Qd6 (20... Qd7 $14 21. Qg4 Kh8) 21. Qg4 ({Better is} 21. Qf1 $16) 21... Qg6 $11 22. Rbf1 c4 {[%cal Of7f6]} 23. h4 {[#] And now h5 would win.} h5 $1 $36 {[%mdl 2048] White is under pressure.} 24. Qh3 {Black must now prevent dxc4.} f6 (24... Rc6 $5 {[%cal Rb7c8]}) 25. Bd2 {[%cal Oa3a4] Black should prevent a4!} Rfe8 26. R1f2 {[%cal Oa3a4]} Kh8 27. Bb4 $2 {[%mdl 8192] Now White is beyond hope.} (27. R5f4 $14 {stays ahead.}) 27... Re3 $19 28. R5f3 cxd3 29. cxd3 Rc1+ 30. Kh2 Bxf3 31. Rxf3 Qg4 32. Qxg4 hxg4 33. Rf5 {[#] Hoping for Rh5+.} Re5 ({And not} 33... g3+ 34. Kh3 Rh1+ 35. Kg4 $15) (33... Bh6 $142 34. Bd2 Ra1) 34. Rf4 $2 (34. Rf2) 34... f5 {...Bf6 is the strong threat.} 35. Rxd4 (35. Bb3 $142) 35... Re8 {( -> ...Be5+). Black is clearly winning.} 36. Rd7 Be5+ 37. g3 Bf6 {Weighted Error Value: White=0.90/Black=0.29 (precise)} 0-1

[Event "58th Akiba Rubinstein B 2022"]
[Site "Polanica-Zdroj"]
[Date "2022.08.17"]
[Round "5.3"]
[White "Mencfel, Artur"]
[Black "Werner, Kacper"]
[Result "*"]
[WhiteElo "1668"]
[BlackElo "1531"]
[Annotator "NA RC"]
[PlyCount "31"]
[EventDate "2022.08.13"]
[EventCountry "POL"]
[SourceTitle "playchess.com"]
[Source "ChessBase"]
[SourceQuality "1"]
[TimeControl "40/5400+30:1800+30"]

1. e4 {[%emt 0:00:07]} c5 {[%emt 0:00:14]} 2. Nc3 {[%emt 0:00:34]} Nc6 {[%emt 0:00:23]} 3. f4 g6 4. Nf3 Bg7 5. Bc4 d6 6. O-O e6 7. d3 Nge7 8. a3 a6 9. Ba2 O-O 10. Be3 Nd4 11. Rb1 b5 12. Ne2 Nxf3+ 13. Rxf3 Bb7 14. Ng3 Rc8 15. Rf2 d5 16. f5 *

[Event "58th Akiba Rubinstein B 2022"]
[Site "Polanica-Zdroj"]
[Date "2022.08.17"]
[Round "5.4"]
[White "Mielczarek, Daniel"]
[Black "Sypien, Natan"]
[Result "1-0"]
[ECO "D02"]
[WhiteElo "1912"]
[BlackElo "1780"]
[Annotator "TA"]
[PlyCount "121"]
[EventDate "2022.08.13"]
[EventCountry "POL"]
[SourceTitle "playchess.com"]
[Source "ChessBase"]
[SourceQuality "1"]
[TimeControl "40/5400+30:1800+30"]

{[%evp 14,121,-1,-1,0,-23,43,3,32,38,40,14,32,31,27,28,32,32,60,54,59,0,15,0,45,43,54,47,52,52,61,59,75,59,75,59,73,54,70,58,81,80,77,66,68,69,68,70,70,-114,70,66,143,93,119,63,198,63,79,68,72,45,47,47,47,47,47,4,22,22,61,6,189,192,363,362,522,530,504,505,508,447,420,370,541,541,529,498,527,529,612,622,604,590,500,484,1124,827,818,812,779,740,626,0,0,0,29972,29965,12337,412]} 1. d4 {[%emt 0:00:06]} d5 {[%emt 0:00:03]} 2. Nf3 {[%emt 0:00:10]} Nf6 {[%emt 0:00:02]} 3. Bf4 {[%emt 0:00:12]} c5 {[%emt 0:00:51]} 4. c3 {[%emt 0:00:27]} Nc6 {[%emt 0:03:00]} 5. e3 {[%emt 0:00:42]} e6 {[%emt 0:01:06]} 6. Bd3 {[%emt 0:00:46]} Nh5 {[%emt 0:01:53]} 7. Bg3 {[%emt 0:01:50]} Be7 {[%emt 0:00:46]} 8. Nbd2 {[%emt 0:01:56]} O-O {[%emt 0:04:42] D02: 1 d4 d5 2 Nf3 sidelines, including 2...Nf6 3 g3 and 2...Nf6 3 Bf4.} 9. Ne5 {[%emt 0:01:13]} Nf6 {[%emt 0:07:56]} (9... g6 $11) 10. f4 {[%emt 0:06:23]} Bd7 {[%emt 0:08:59] The position is equal.} 11. O-O {[%emt 0:02:51] [#]} Rc8 $146 {[%emt 0:05:59]} ({Predecessor:} 11... a6 12. Rf3 b5 13. Bh4 g6 14. Rh3 Ne8 15. Bxe7 Qxe7 16. Ndf3 c4 17. Bc2 Kg7 {1-0 (41) Touzane,O (2268)-Farre I Benseny,M (1822) Castell de Sant Ferran 2019}) 12. Bh4 {[%emt 0:02:35]} Ne8 {[#]} 13. Qh5 $1 {[%emt 0:11:28][%csl Gd3][%cal Rh5h7]} g6 {[%emt 0:18:50] [#]} (13... f5 14. Bxe7) 14. Bxe7 $1 {[%emt 0:03:47]} Qxe7 {[%emt 0:03:29]} 15. Qh6 {[%emt 0:03:24]} Nxe5 {[%emt 0:02:59]} 16. fxe5 {[%emt 0:00:29]} f5 {[%emt 0:00:02]} 17. Rf2 {[%emt 0:10:26]} (17. exf6 $14 Nxf6 18. Qg5) 17... Nc7 {[%emt 0:02:08]} (17... c4 $5 {[%cal Rc4d3]} 18. Be2 Nc7 $11) 18. h4 {[%emt 0:07:58]} Bb5 {[%emt 0:12:40]} (18... c4 $5 {[%cal Rc4d3]} 19. Be2 b5 $11) 19. Bc2 {[%emt 0:01:30]} b6 {[%emt 0:10:28]} 20. Nf3 {[%emt 0:02:27][%cal Bd2f3,Bf3g5,Bg5h3,Bh3f4][%mdl 32]} Qg7 {[%emt 0:02:44]} 21. Qf4 {[%emt 0:01:44]} a5 {[%emt 0:00:28]} 22. g3 {[%emt 0:00:22]} h5 {[%emt 0:01:27]} 23. Ng5 {[%emt 0:02:31]} Qe7 {[%emt 0:00:06]} 24. Nh3 {[%emt 0:01:02]} Kg7 {[%emt 0:00:33]} 25. Qf3 {[%emt 0:00:54]} (25. a4 $5 {[%cal Ra4b5]} Bc6 26. b3 $14) 25... Ba6 {[%emt 0:00:50]} 26. a4 {[%emt 0:03:02]} Bb7 {[%emt 0:02:08]} 27. Nf4 {[%emt 0:00:49]} Na6 {[%emt 0:01:53]} 28. Bd1 {[%emt 0:01:00]} Rh8 {[%emt 0:01:14]} 29. Qe2 {[%emt 0:00:58]} Nb8 {[%emt 0:01:40]} 30. Qb5 {[%emt 0:01:59]} Rc6 {[%emt 0:00:25] aiming for ...c4.} 31. Bf3 $2 {[%emt 0:01:18]} (31. Qb3 $14) 31... Ba6 $2 {[%emt 0:00:30]} (31... c4 $17 {And now ...Rd8 would win.} 32. Bxd5 exd5 33. Nxd5 Qf7) 32. Qb3 $14 {[%emt 0:00:37] 0x0.001b84b62da5dp-1022s more active pieces. The black rooks are badly placed.} Bc4 {[%emt 0:00:11]} (32... Rhc8 $14) 33. Qc2 {[%emt 0:01:25]} ({White should try} 33. Qa3) 33... Rc7 {[%emt 0:01:06]} 34. Kg2 {[%emt 0:17:42]} (34. b3 $16 Ba6 35. Qb2) 34... Rcc8 {[%emt 0:00:12]} ({Better is} 34... Rhc8 $14) 35. Qd2 {[%emt 0:03:01]} ({White has to play} 35. b3 $18 Ba6 36. Rb1) 35... Nc6 {[%emt 0:00:24]} 36. Bd1 {[%emt 0:01:34]} Rb8 {[%emt 0:00:21]} 37. Be2 {[%emt 0:00:37]} Bxe2 {[%emt 0:00:20]} 38. Qxe2 {[%emt 0:00:16]} Rhe8 {[%emt 0:00:25]} 39. Qb5 {[%emt 0:00:24]} Rec8 {[%emt 0:05:38]} 40. Qb3 {[%emt 0:00:00]} Kf7 {[%emt 0:00:00]} 41. Raf1 {[%emt 0:10:01]} c4 {[%emt 0:21:49]} 42. Qd1 {[%emt 0:00:58]} (42. Qc2 $14) 42... b5 $2 {[%emt 0:02:07] [#]} (42... Qe8 $11 {and Black stays safe.}) 43. Nxh5 $1 $18 {[%emt 0:08:12][%mdl 512] Threatens to win with Nf6.} gxh5 {[%emt 0:00:18]} (43... Rh8) (43... bxa4 44. Nf4) 44. Qxh5+ {[%emt 0:00:06]} Kg7 {[%emt 0:00:15] [#]} (44... Kg8 {was worth a try.} 45. Qg6+ Qg7 46. Qxe6+ Qf7 47. Qxf7+ (47. Qxf5 Qxf5 48. Rxf5 bxa4 $16) 47... Kxf7 48. Rxf5+ Kg7) 45. Rxf5 $1 {[%emt 0:01:00][%mdl 512]} exf5 {[%emt 0:00:37]} 46. Rxf5 {[%emt 0:00:07]} bxa4 {[%emt 0:05:51]} 47. Qg4+ {[%emt 0:03:22]} Kh8 {[%emt 0:00:04]} 48. Rh5+ {[%emt 0:01:26]} Qh7 {[%emt 0:00:01]} 49. Rxh7+ {[%emt 0:00:20]} Kxh7 {[%emt 0:00:01]} 50. Qd7+ {[%emt 0:00:30]} Kh8 {[%emt 0:00:52]} 51. Kh3 {[%emt 0:00:24]} Nb4 {[%emt 0:00:59]} 52. g4 {[%emt 0:02:16][%cal Bg3g4,Bg4g5,Bg5g6][%mdl 32]} ({Inferior is} 52. cxb4 a3 $11) 52... Nd3 {[%emt 0:01:46]} 53. g5 {[%emt 0:00:27]} Rg8 {[%emt 0:02:59]} 54. Qd6 {[%emt 0:01:13][%cal Rd6h6]} Rb7 {[%emt 0:00:03]} (54... Nf2+ $142 55. Kg2 Ng4) 55. Qf6+ {[%emt 0:02:52]} Rgg7 {[%emt 0:00:12]} 56. g6 {[%emt 0:00:57] Threatening mate with Qf8+.} Nf2+ {[%emt 0:00:44]} 57. Kg2 {[%emt 0:01:41] White wants to mate with Qf8+.} Ng4 {[%emt 0:00:01] [#]} 58. Qg5 $2 {[%emt 0:05:04]} (58. Qd8+ $1 $18 Rg8 59. Qg5) 58... Rxb2+ $11 {[%emt 0:00:58]} 59. Kg3 {[%emt 0:01:07] Really sharp!} Rb6 $2 {[%emt 0:01:18][%mdl 8192]} 60. h5 {[%emt 0:00:50]} a3 {[%emt 0:00:34]} 61. Qd8+ {Weighted Error Value: White=0.30/Black=0.48} (61. Kxg4 $142 Rb8 62. Qf6 Kg8 63. h6 Rgb7 64. e6 Rf8 65. h7+ Rxh7 66. gxh7+ Kxh7 67. Qxf8 Kg6 68. e7 a2 69. e8=Q+ Kh7 70. Qh8#) 1-0

[Event "58th Akiba Rubinstein B 2022"]
[Site "Polanica-Zdroj"]
[Date "2022.08.17"]
[Round "5.4"]
[White "Zeissel, Andrzej"]
[Black "Szydlowski, Oskar"]
[Result "*"]
[ECO "D02"]
[WhiteElo "1624"]
[BlackElo "1309"]
[Annotator "NA RC"]
[PlyCount "32"]
[EventDate "2022.08.13"]
[EventCountry "POL"]
[SourceTitle "playchess.com"]
[Source "ChessBase"]
[SourceQuality "1"]
[TimeControl "40/5400+30:1800+30"]

1. d4 {[%emt 0:00:06]} d5 {[%emt 0:00:03]} 2. Nf3 {[%emt 0:00:10]} Nf6 {[%emt 0:00:02]} 3. Bf4 {[%emt 0:00:12]} c5 {[%emt 0:00:51]} 4. c3 {[%emt 0:00:27]} Nc6 {[%emt 0:03:00]} 5. e3 {[%emt 0:00:42]} e6 {[%emt 0:01:06]} 6. Bd3 {[%emt 0:00:46]} Nh5 {[%emt 0:01:53]} 7. Bg3 {[%emt 0:01:50]} Be7 {[%emt 0:00:46]} 8. Nbd2 {[%emt 0:01:56]} O-O {[%emt 0:04:42]} 9. Ne5 {[%emt 0:01:13]} Nf6 {[%emt 0:07:56]} 10. f4 {[%emt 0:06:23]} Bd7 {[%emt 0:08:59]} 11. O-O {[%emt 0:02:51]} Rc8 {[%emt 0:05:59]} 12. Bh4 {[%emt 0:02:35]} Ne8 {[%emt 0:18:33]} 13. Qh5 {[%emt 0:11:28]} g6 {[%emt 0:18:50]} 14. Bxe7 {[%emt 0:03:47]} Qxe7 {[%emt 0:03:29]} 15. Qh6 {[%emt 0:03:24]} Nxe5 {[%emt 0:02:59]} 16. fxe5 {[%emt 0:00:29]} f5 {[%emt 0:00:02]} *

[Event "58th Akiba Rubinstein B 2022"]
[Site "Polanica-Zdroj"]
[Date "2022.08.17"]
[Round "5.5"]
[White "Zerebiec, Maurycy"]
[Black "Jaworski, Tymon"]
[Result "*"]
[ECO "B40"]
[WhiteElo "1915"]
[BlackElo "1701"]
[Annotator "NA RC"]
[PlyCount "32"]
[EventDate "2022.08.13"]
[EventCountry "POL"]
[SourceTitle "playchess.com"]
[Source "ChessBase"]
[SourceQuality "1"]
[TimeControl "40/5400+30:1800+30"]

1. e4 {[%emt 0:00:10]} c5 {[%emt 0:00:04]} 2. Nf3 {[%emt 0:00:17]} e6 {[%emt 0:00:04]} 3. d4 {[%emt 0:00:09]} cxd4 {[%emt 0:00:05]} 4. Nxd4 {[%emt 0:00:03]} Qb6 {[%emt 0:00:06]} 5. Nb3 {[%emt 0:02:33]} Nc6 {[%emt 0:00:04]} 6. g3 {[%emt 0:02:02]} Nf6 {[%emt 0:01:45]} 7. Bg2 {[%emt 0:00:22]} Be7 {[%emt 0:01:02]} 8. O-O {[%emt 0:03:47]} O-O {[%emt 0:01:03]} 9. Be3 {[%emt 0:00:09]} Qc7 {[%emt 0:00:07]} 10. Nc3 {[%emt 0:00:13]} a6 {[%emt 0:00:05]} 11. Na4 {[%emt 0:01:22]} b5 {[%emt 0:03:20]} 12. Nb6 {[%emt 0:00:26]} Rb8 {[%emt 0:00:14]} 13. Nxc8 {[%emt 0:00:07]} Rbxc8 {[%emt 0:03:15]} 14. f4 {[%emt 0:00:51]} d6 {[%emt 0:04:01]} 15. Qe2 {[%emt 0:08:56]} Rfe8 {[%emt 0:31:35]} 16. a4 {[%emt 0:11:11]} b4 {[%emt 0:15:10]} *

[Event "58th Akiba Rubinstein B 2022"]
[Site "Polanica-Zdroj"]
[Date "2022.08.17"]
[Round "5.5"]
[White "Twardowski, Hubert"]
[Black "Smukowski, Bartosz"]
[Result "1/2-1/2"]
[ECO "B40"]
[WhiteElo "1849"]
[BlackElo "1696"]
[Annotator "NA RC"]
[PlyCount "68"]
[EventDate "2022.08.13"]
[EventCountry "POL"]
[SourceTitle "playchess.com"]
[Source "ChessBase"]
[SourceQuality "1"]
[TimeControl "40/5400+30:1800+30"]

1. e4 {[%emt 0:00:10]} c5 {[%emt 0:00:04]} 2. Nf3 {[%emt 0:00:17]} e6 {[%emt 0:00:04]} 3. d4 {[%emt 0:00:09]} cxd4 {[%emt 0:00:05]} 4. Nxd4 {[%emt 0:00:03]} Qb6 {[%emt 0:00:06]} 5. Nb3 {[%emt 0:02:33]} Nc6 {[%emt 0:00:04]} 6. g3 {[%emt 0:02:02]} Nf6 {[%emt 0:01:45]} 7. Bg2 {[%emt 0:00:22]} Be7 {[%emt 0:01:02]} 8. O-O {[%emt 0:03:47]} O-O {[%emt 0:01:03]} 9. Be3 {[%emt 0:00:09]} Qc7 {[%emt 0:00:07]} 10. Nc3 {[%emt 0:00:13]} a6 {[%emt 0:00:05]} 11. Na4 {[%emt 0:01:22]} b5 {[%emt 0:03:20]} 12. Nb6 {[%emt 0:00:26]} Rb8 {[%emt 0:00:14]} 13. Nxc8 {[%emt 0:00:07]} Rbxc8 {[%emt 0:03:15]} 14. f4 {[%emt 0:00:51]} d6 {[%emt 0:04:01]} 15. Qe2 {[%emt 0:08:56]} Rfe8 {[%emt 0:31:35]} 16. a4 {[%emt 0:11:11]} b4 {[%emt 0:15:10]} 17. a5 {[%emt 0:08:03]} Nb8 {[%emt 0:01:59]} 18. Rf2 {[%emt 0:05:27]} d5 {[%emt 0:09:54]} 19. e5 {[%emt 0:07:19]} Nfd7 {[%emt 0:00:04]} 20. Rd1 {[%emt 0:12:24]} Nc5 {[%emt 0:02:14]} 21. Nxc5 {[%emt 0:20:34]} Bxc5 {[%emt 0:00:07]} 22. f5 {[%emt 0:00:07]} exf5 {[%emt 0:14:03]} 23. Bxc5 {[%emt 0:07:26]} Qxc5 {[%emt 0:09:43]} 24. Rxd5 {[%emt 0:00:17]} Qa7 {[%emt 0:00:25]} 25. Qd3 {[%emt 0:00:54]} g6 {[%emt 0:01:04]} 26. Kf1 {[%emt 0:05:54]} Nc6 {[%emt 0:00:54]} 27. Re2 {[%emt 0:00:37]} Re6 {[%emt 0:00:17]} 28. Rd7 {[%emt 0:01:16]} Qc5 {[%emt 0:00:27]} 29. Bxc6 {[%emt 0:01:20]} Qxc6 {[%emt 0:00:06]} 30. Rd6 {[%emt 0:00:38]} Qh1+ {[%emt 0:00:17]} 31. Kf2 {[%emt 0:00:01]} Qxh2+ {[%emt 0:00:32]} 32. Kf1 {[%emt 0:00:39]} Qh1+ {[%emt 0:00:52]} 33. Kf2 {[%emt 0:00:11]} Qh2+ {[%emt 0:01:19]} 34. Kf1 {[%emt 0:01:06]} Qh1+ 1/2-1/2

[Event "58th Akiba Rubinstein B 2022"]
[Site "Polanica-Zdroj"]
[Date "2022.08.17"]
[Round "5.6"]
[White "Trusz, Julia"]
[Black "Owoc, Jakub"]
[Result "1/2-1/2"]
[ECO "D71"]
[WhiteElo "1706"]
[BlackElo "1756"]
[Annotator "NA RC"]
[PlyCount "139"]
[EventDate "2022.08.13"]
[EventCountry "POL"]
[SourceTitle "playchess.com"]
[Source "ChessBase"]
[SourceQuality "1"]
[TimeControl "40/5400+30:1800+30"]

1. d4 {[%emt 0:00:07]} Nf6 {[%emt 0:00:03]} 2. c4 {[%emt 0:00:17]} g6 {[%emt 0:00:07]} 3. g3 {[%emt 0:00:32]} c5 {[%emt 0:00:12]} 4. Nf3 {[%emt 0:01:20]} Bg7 {[%emt 0:00:08]} 5. Bg2 {[%emt 0:00:41]} O-O {[%emt 0:00:11]} 6. O-O {[%emt 0:02:02]} cxd4 {[%emt 0:00:53]} 7. Nxd4 {[%emt 0:00:12]} Nc6 {[%emt 0:00:09]} 8. Nc3 {[%emt 0:02:18]} a6 {[%emt 0:01:47]} 9. Nxc6 {[%emt 0:06:20]} dxc6 {[%emt 0:01:02]} 10. Qb3 {[%emt 0:01:02]} Qc7 {[%emt 0:00:25]} 11. Rd1 {[%emt 0:02:05]} e5 {[%emt 0:02:28]} 12. Be3 {[%emt 0:02:39]} Be6 {[%emt 0:02:10]} 13. Bc5 {[%emt 0:05:11]} Rfe8 {[%emt 0:00:24]} 14. Bd6 {[%emt 0:05:30]} Qc8 {[%emt 0:00:10]} 15. Na4 {[%emt 0:08:18]} Nd7 {[%emt 0:00:39]} 16. Qc2 {[%emt 0:02:43]} Bf8 {[%emt 0:01:56]} 17. c5 {[%emt 0:01:21]} Bxd6 {[%emt 0:06:02]} 18. cxd6 {[%emt 0:03:46]} Rb8 {[%emt 0:00:05]} 19. b3 {[%emt 0:12:41]} Qd8 {[%emt 0:02:36]} 20. b4 {[%emt 0:18:49]} f5 {[%emt 0:02:26]} 21. Nc5 {[%emt 0:02:07]} Qf6 {[%emt 0:00:04]} 22. Qc3 {[%emt 0:04:06]} Kg7 {[%emt 0:01:16]} 23. Rd2 {[%emt 0:01:18]} e4 {[%emt 0:06:51]} 24. Qxf6+ {[%emt 0:03:56]} Kxf6 {[%emt 0:00:04]} 25. f3 {[%emt 0:05:27]} exf3 {[%emt 0:00:12]} 26. exf3 {[%emt 0:00:27]} Nxc5 {[%emt 0:07:35]} 27. bxc5 {[%emt 0:00:08]} b6 {[%emt 0:00:01]} 28. f4 {[%emt 0:03:38]} bxc5 {[%emt 0:00:07]} 29. Bxc6 {[%emt 0:00:11]} Red8 {[%emt 0:00:03]} 30. Rc1 {[%emt 0:01:40]} c4 {[%emt 0:00:03]} 31. d7 {[%emt 0:03:17]} Rb6 {[%emt 0:00:12]} 32. Ba4 {[%emt 0:00:36]} Ke7 {[%emt 0:03:23]} 33. Kf2 {[%emt 0:00:54]} Rb7 {[%emt 0:05:49]} 34. Ke3 {[%emt 0:00:56]} h6 {[%emt 0:02:24]} 35. h4 {[%emt 0:00:44]} Rc7 {[%emt 0:01:35]} 36. Rdc2 {[%emt 0:00:11]} Rc5 {[%emt 0:00:50]} 37. Bb3 {[%emt 0:00:52]} Rxd7 {[%emt 0:04:13]} 38. Bxc4 {[%emt 0:00:06]} Bxc4 {[%emt 0:00:15]} 39. Rxc4 {[%emt 0:00:04]} Rcd5 {[%emt 0:00:13]} 40. Rc7 {[%emt 0:00:00]} Rd3+ {[%emt 0:00:00]} 41. Ke2 {[%emt 0:01:53]} Rd2+ {[%emt 0:00:11]} 42. Ke3 {[%emt 0:00:06]} Rxa2 {[%emt 0:00:06]} 43. Rxd7+ {[%emt 0:03:26]} Kxd7 {[%emt 0:00:05]} 44. Kd4 {[%emt 0:00:26]} Ra3 {[%emt 0:01:41]} 45. Ke5 {[%emt 0:01:06]} Re3+ {[%emt 0:04:30]} 46. Kd4 {[%emt 0:06:53]} Rxg3 {[%emt 0:25:46]} 47. Ra1 {[%emt 0:00:44]} Rf3 {[%emt 0:11:21]} 48. Rxa6 {[%emt 0:00:39]} Rxf4+ {[%emt 0:00:09]} 49. Ke5 {[%emt 0:02:50]} Re4+ {[%emt 0:05:22]} 50. Kd5 {[%emt 0:04:05]} g5 {[%emt 0:01:37]} 51. hxg5 {[%emt 0:05:05]} hxg5 {[%emt 0:00:06]} 52. Rf6 {[%emt 0:00:08]} Rf4 {[%emt 0:00:08]} 53. Ke5 {[%emt 0:00:15]} Rf1 {[%emt 0:02:16]} 54. Rf7+ {[%emt 0:05:10]} Ke8 {[%emt 0:00:13]} 55. Rxf5 {[%emt 0:00:06]} Re1+ {[%emt 0:00:07]} 56. Kd4 {[%emt 0:00:53]} Rg1 {[%emt 0:00:55]} 57. Ke3 {[%emt 0:00:49]} Ke7 {[%emt 0:00:02]} 58. Kf2 {[%emt 0:00:14]} Ke6 {[%emt 0:00:04]} 59. Ra5 {[%emt 0:00:15]} Rg4 {[%emt 0:00:03]} 60. Kf3 {[%emt 0:00:32]} Rf4+ {[%emt 0:00:03]} 61. Kg3 {[%emt 0:00:19]} Kf6 {[%emt 0:00:10]} 62. Ra6+ {[%emt 0:01:05]} Kf5 {[%emt 0:00:03]} 63. Ra5+ {[%emt 0:00:38]} Kg6 {[%emt 0:00:02]} 64. Ra6+ {[%emt 0:00:24]} Kh5 {[%emt 0:00:01]} 65. Ra8 {[%emt 0:00:16]} Rf6 {[%emt 0:01:40]} 66. Rh8+ {[%emt 0:00:31]} Rh6 {[%emt 0:00:02]} 67. Rg8 {[%emt 0:01:07]} Rh7 {[%emt 0:00:12]} 68. Kh3 {[%emt 0:00:14]} Rf7 {[%emt 0:00:32]} 69. Kg3 {[%emt 0:01:08]} Kh6 {[%emt 0:01:05]} 70. Kg4 {[%emt 0:00:27]} 1/2-1/2

[Event "58th Akiba Rubinstein B 2022"]
[Site "Polanica-Zdroj"]
[Date "2022.08.17"]
[Round "5.6"]
[White "Halhoul, Adam"]
[Black "Chmiel, Marcin"]
[Result "*"]
[ECO "A50"]
[WhiteElo "1672"]
[BlackElo "2192"]
[Annotator "NA RC"]
[PlyCount "40"]
[EventDate "2022.08.13"]
[EventCountry "POL"]
[SourceTitle "playchess.com"]
[Source "ChessBase"]
[SourceQuality "1"]
[TimeControl "40/5400+30:1800+30"]

1. d4 {[%emt 0:00:07]} Nf6 {[%emt 0:00:03]} 2. c4 {[%emt 0:00:17]} g6 {[%emt 0:00:07]} 3. g3 {[%emt 0:00:32]} c5 {[%emt 0:00:12]} 4. Nf3 {[%emt 0:01:20]} Bg7 {[%emt 0:00:08]} 5. Bg2 {[%emt 0:00:41]} O-O {[%emt 0:00:11]} 6. O-O {[%emt 0:02:02]} cxd4 {[%emt 0:00:53]} 7. Nxd4 {[%emt 0:00:12]} Nc6 {[%emt 0:00:09]} 8. Nc3 {[%emt 0:02:18]} a6 {[%emt 0:01:47]} 9. Nxc6 {[%emt 0:06:20]} dxc6 {[%emt 0:01:02]} 10. Qb3 {[%emt 0:01:02]} Qc7 {[%emt 0:00:25]} 11. Rd1 {[%emt 0:02:05]} e5 {[%emt 0:02:28]} 12. Be3 {[%emt 0:02:39]} Be6 {[%emt 0:02:10]} 13. Bc5 {[%emt 0:05:11]} Rfe8 {[%emt 0:00:24]} 14. Bd6 {[%emt 0:05:30]} Qc8 {[%emt 0:00:10]} 15. Na4 {[%emt 0:08:18]} Nd7 {[%emt 0:00:39]} 16. Qc2 {[%emt 0:02:43]} Bf8 {[%emt 0:01:56]} 17. c5 {[%emt 0:01:21]} Bxd6 {[%emt 0:06:02]} 18. cxd6 {[%emt 0:03:46]} Rb8 {[%emt 0:00:05]} 19. b3 {[%emt 0:12:41]} Qd8 {[%emt 0:02:36]} 20. b4 {[%emt 0:18:49]} f5 {[%emt 0:02:26]} *

[Event "58th Akiba Rubinstein B 2022"]
[Site "Polanica-Zdroj"]
[Date "2022.08.17"]
[Round "5.7"]
[White "Rogala, Milosz"]
[Black "Lukasiewicz, Anna"]
[Result "*"]
[ECO "D30"]
[WhiteElo "1837"]
[BlackElo "1954"]
[Annotator "NA RC"]
[PlyCount "50"]
[EventDate "2022.08.13"]
[EventCountry "POL"]
[SourceTitle "playchess.com"]
[Source "ChessBase"]
[SourceQuality "1"]
[TimeControl "40/5400+30:1800+30"]

1. d4 {[%emt 0:00:05]} d5 {[%emt 0:00:02]} 2. c4 {[%emt 0:00:07]} e6 {[%emt 0:00:02]} 3. cxd5 {[%emt 0:00:06]} exd5 {[%emt 0:00:04]} 4. Nc3 {[%emt 0:00:06]} c6 {[%emt 0:00:03]} 5. Bf4 {[%emt 0:00:32]} Bd6 {[%emt 0:00:11]} 6. Bxd6 {[%emt 0:00:09]} Qxd6 {[%emt 0:00:05]} 7. e3 {[%emt 0:00:07]} Bf5 {[%emt 0:00:08]} 8. Bd3 {[%emt 0:00:10]} Bxd3 {[%emt 0:00:09]} 9. Qxd3 {[%emt 0:00:07]} Nf6 {[%emt 0:00:04]} 10. Nge2 {[%emt 0:00:15]} Nbd7 {[%emt 0:00:09]} 11. h3 {[%emt 0:00:15]} Nb6 {[%emt 0:01:41]} 12. O-O {[%emt 0:01:07]} O-O {[%emt 0:00:09]} 13. Rab1 {[%emt 0:00:53]} a6 {[%emt 0:00:21]} 14. b4 {[%emt 0:01:09]} Rfe8 {[%emt 0:02:37]} 15. a4 {[%emt 0:01:26]} Nc4 {[%emt 0:00:22]} 16. b5 {[%emt 0:01:09]} axb5 {[%emt 0:05:18]} 17. axb5 {[%emt 0:00:11]} Ra3 {[%emt 0:03:28]} 18. bxc6 {[%emt 0:05:27]} bxc6 {[%emt 0:02:08]} 19. Rfc1 {[%emt 0:05:25]} g6 {[%emt 0:01:14]} 20. Qd1 {[%emt 0:03:23]} Kg7 {[%emt 0:04:13]} 21. Nf4 {[%emt 0:06:49]} h5 {[%emt 0:15:34]} 22. Nd3 {[%emt 0:16:16]} g5 {[%emt 0:05:30]} 23. Nb2 {[%emt 0:00:07]} Nxb2 {[%emt 0:03:25]} 24. Rxb2 {[%emt 0:03:33]} Ra6 25. Qd3 Rea8 {[%emt 0:04:56]} *